[Event "Titled Tuesday Blitz March 22 Early 2022"]
[White "Aaditya Dhingra"]
[Black "Seo, Jung Min"]
[WhiteFideId "25678191"]
[BlackFideId "1734687"]
[WhiteElo "1849"]
[BlackElo "2401"]
[Result "0-1"]
[Round "04"]
[TimeControl "180+1"]
[Date "2022.03.22"]
[WhiteClock "0:00:48"]
[BlackClock "0:01:35"]

1. Nf3 {[%clk 0:03:00]}  Nf6 {[%clk 0:03:00]} 2. g3 {[%clk 0:03:00]}  b5 {[%clk 0:03:00]} 3. Bg2 {[%clk 0:02:59]}  Bb7 {[%clk 0:03:00]} 4. O-O {[%clk 0:03:00]}  e6 {[%clk 0:03:00]} 5. d3 {[%clk 0:02:58]}  Be7 {[%clk 0:02:59]} 6. e4 {[%clk 0:02:57]}  d6 {[%clk 0:03:00]} 7. Nbd2 {[%clk 0:02:54]}  O-O {[%clk 0:02:59]} 8. h4 {[%clk 0:02:54]}  c5 {[%clk 0:02:59]} 9. a4 {[%clk 0:02:52]}  a6 {[%clk 0:02:59]} 10. Re1 {[%clk 0:02:49]}  Nc6 {[%clk 0:02:57]} 11. Nf1 {[%clk 0:02:49]}  Qc7 {[%clk 0:02:56]} 12. Ne3 {[%clk 0:02:39]}  Rfe8 {[%clk 0:02:56]} 13. Nh2 {[%clk 0:02:38]}  Rad8 {[%clk 0:02:53]} 14. Nhg4 {[%clk 0:02:34]}  Nxg4 {[%clk 0:02:50]} 15. Nxg4 {[%clk 0:02:29]}  Bf8 {[%clk 0:02:42]} 16. h5 {[%clk 0:02:28]}  Ne5 {[%clk 0:02:37]} 17. Nh2 {[%clk 0:02:22]}  d5 {[%clk 0:02:31]} 18. Bf4 {[%clk 0:02:20]}  Bd6 {[%clk 0:02:23]} 19. h6 {[%clk 0:02:16]}  g6 {[%clk 0:02:21]} 20. Ng4 {[%clk 0:01:46]}  Nxg4 {[%clk 0:02:19]} 21. Bxd6 {[%clk 0:01:46]}  Qxd6 {[%clk 0:02:12]} 22. Qxg4 {[%clk 0:01:46]}  dxe4 {[%clk 0:01:57]} 23. dxe4 {[%clk 0:01:41]}  e5 {[%clk 0:01:51]} 24. axb5 {[%clk 0:01:39]}  axb5 {[%clk 0:01:51]} 25. Bf3 {[%clk 0:01:19]}  Qf6 {[%clk 0:01:40]} 26. Ra7 {[%clk 0:01:14]}  Bc8 {[%clk 0:01:39]} 27. Qh4 {[%clk 0:00:48]}  Qxf3 {[%clk 0:01:35]} 0-1


[Site "https://www.chess.com"]

[Event "Titled Tuesday Blitz March 22 Early 2022"]
[White "Agibileg, Uurtsaikh"]
[Black "Lazavik, Denis"]
[WhiteFideId "4901606"]
[BlackFideId "13515110"]
[WhiteElo "2205"]
[BlackElo "2437"]
[Result "0-1"]
[Round "04"]
[TimeControl "180+1"]
[Date "2022.03.22"]
[WhiteClock "0:00:15"]
[BlackClock "0:01:44"]

1. d4 {[%clk 0:03:00]}  f5 {[%clk 0:02:59]} 2. c4 {[%clk 0:03:01]}  Nf6 {[%clk 0:02:59]} 3. g3 {[%clk 0:03:00]}  g6 {[%clk 0:03:00]} 4. Bg2 {[%clk 0:03:00]}  Bg7 {[%clk 0:03:00]} 5. Nf3 {[%clk 0:03:01]}  O-O {[%clk 0:03:01]} 6. O-O {[%clk 0:03:01]}  d6 {[%clk 0:03:02]} 7. b3 {[%clk 0:03:01]}  e5 {[%clk 0:02:56]} 8. dxe5 {[%clk 0:03:00]}  dxe5 {[%clk 0:02:55]} 9. Ba3 {[%clk 0:02:53]}  Qxd1 {[%clk 0:02:48]} 10. Rxd1 {[%clk 0:02:54]}  Re8 {[%clk 0:02:48]} 11. Nc3 {[%clk 0:02:50]}  e4 {[%clk 0:02:47]} 12. Nd4 {[%clk 0:02:45]}  c6 {[%clk 0:02:44]} 13. f3 {[%clk 0:02:45]}  Nbd7 {[%clk 0:02:28]} 14. fxe4 {[%clk 0:02:44]}  fxe4 {[%clk 0:02:28]} 15. Bd6 {[%clk 0:02:39]}  Ne5 {[%clk 0:02:25]} 16. Rac1 {[%clk 0:01:10]}  Bh6 {[%clk 0:02:08]} 17. Rc2 {[%clk 0:00:59]}  Neg4 {[%clk 0:02:07]} 18. Bf4 {[%clk 0:00:41]}  Bxf4 {[%clk 0:02:05]} 19. gxf4 {[%clk 0:00:42]}  Ne3 {[%clk 0:02:05]} 20. Rdd2 {[%clk 0:00:34]}  Nxc2 {[%clk 0:02:03]} 21. Nxc2 {[%clk 0:00:35]}  e3 {[%clk 0:02:01]} 22. Rd6 {[%clk 0:00:34]}  Nh5 {[%clk 0:02:00]} 23. Nd4 {[%clk 0:00:21]}  Nxf4 {[%clk 0:01:53]} 24. Ne4 {[%clk 0:00:20]}  Kg7 {[%clk 0:01:52]} 25. Bf3 {[%clk 0:00:19]}  Bh3 {[%clk 0:01:48]} 26. Ng5 {[%clk 0:00:18]}  Rad8 {[%clk 0:01:42]} 27. Rxd8 {[%clk 0:00:15]}  Rxd8 {[%clk 0:01:43]} 28. Nxh3 {[%clk 0:00:15]}  Rxd4 {[%clk 0:01:43]} 29. Nxf4 {[%clk 0:00:15]}  Rxf4 {[%clk 0:01:44]} 30. Kg2 {[%clk 0:00:15]}  Kf6 {[%clk 0:01:44]} 0-1


[Site "https://www.chess.com"]

[Event "Titled Tuesday Blitz March 22 Early 2022"]
[White "Alinasab, Mobina"]
[Black "Samarth, J Rao"]
[WhiteFideId "12528897"]
[BlackFideId "46652370"]
[WhiteElo "2052"]
[BlackElo "1514"]
[Result "1-0"]
[Round "04"]
[TimeControl "180+1"]
[Date "2022.03.22"]
[WhiteClock "0:00:13"]
[BlackClock "0:00:05"]

1. e4 {[%clk 0:03:00]}  c5 {[%clk 0:02:03]} 2. Nf3 {[%clk 0:02:59]}  g6 {[%clk 0:01:56]} 3. d4 {[%clk 0:02:57]}  cxd4 {[%clk 0:01:53]} 4. Nxd4 {[%clk 0:02:58]}  Bg7 {[%clk 0:01:52]} 5. c4 {[%clk 0:02:55]}  Nc6 {[%clk 0:01:24]} 6. Be3 {[%clk 0:02:54]}  Nf6 {[%clk 0:01:24]} 7. Nc3 {[%clk 0:02:53]}  d6 {[%clk 0:01:24]} 8. f3 {[%clk 0:02:52]}  O-O {[%clk 0:01:23]} 9. Qd2 {[%clk 0:02:51]}  Bd7 {[%clk 0:01:20]} 10. Be2 {[%clk 0:02:44]}  a5 {[%clk 0:01:10]} 11. b3 {[%clk 0:02:40]}  Nxd4 {[%clk 0:01:10]} 12. Bxd4 {[%clk 0:02:39]}  Bc6 {[%clk 0:01:10]} 13. g4 {[%clk 0:02:39]}  Nd7 {[%clk 0:01:08]} 14. Be3 {[%clk 0:02:38]}  Nc5 {[%clk 0:01:04]} 15. h4 {[%clk 0:02:37]}  Qb6 {[%clk 0:00:59]} 16. h5 {[%clk 0:02:28]}  a4 {[%clk 0:00:53]} 17. hxg6 {[%clk 0:01:43]}  fxg6 {[%clk 0:00:34]} 18. Rb1 {[%clk 0:01:33]}  axb3 {[%clk 0:00:29]} 19. axb3 {[%clk 0:01:34]}  Qb4 {[%clk 0:00:16]} 20. Nd5 {[%clk 0:01:04]}  Qxd2+ {[%clk 0:00:13]} 21. Bxd2 {[%clk 0:01:05]}  Bxd5 {[%clk 0:00:13]} 22. cxd5 {[%clk 0:01:02]}  Ra2 {[%clk 0:00:14]} 23. Bb4 {[%clk 0:00:48]}  Bd4 {[%clk 0:00:08]} 24. Rh3 {[%clk 0:00:46]}  Na6 {[%clk 0:00:08]} 25. Bd2 {[%clk 0:00:43]}  Rc8 {[%clk 0:00:08]} 26. Bc4 {[%clk 0:00:41]}  Nc5 {[%clk 0:00:05]} 27. Bb4 {[%clk 0:00:30]}  Nd7 {[%clk 0:00:03]} 28. f4 {[%clk 0:00:27]}  Ne5 {[%clk 0:00:04]} 29. fxe5 {[%clk 0:00:25]}  Rf8 {[%clk 0:00:05]} 30. exd6 {[%clk 0:00:21]}  Rff2 {[%clk 0:00:06]} 31. dxe7 {[%clk 0:00:20]}  Kf7 {[%clk 0:00:07]} 32. e8=Q+ {[%clk 0:00:19]}  Kxe8 {[%clk 0:00:07]} 33. d6 {[%clk 0:00:20]}  Kd7 {[%clk 0:00:06]} 34. Bb5+ {[%clk 0:00:20]}  Ke6 {[%clk 0:00:06]} 35. Bc4+ {[%clk 0:00:19]}  Ke5 {[%clk 0:00:05]} 36. Rxh7 {[%clk 0:00:20]}  Rg2 {[%clk 0:00:05]} 37. Rh1 {[%clk 0:00:16]}  Bf2+ {[%clk 0:00:04]} 38. Kf1 {[%clk 0:00:15]}  Be3 {[%clk 0:00:05]} 39. Bc3+ {[%clk 0:00:15]}  Kf4 {[%clk 0:00:04]} 40. d7 {[%clk 0:00:13]}  Kf3 {[%clk 0:00:05]} 41. d8=Q {[%clk 0:00:12]}  Raf2+ {[%clk 0:00:05]} 42. Ke1 {[%clk 0:00:13]}  Re2+ {[%clk 0:00:05]} 43. Bxe2+ {[%clk 0:00:12]}  Rxe2+ {[%clk 0:00:05]} 44. Kd1 {[%clk 0:00:13]} 1-0


[Site "https://www.chess.com"]

[Event "Titled Tuesday Blitz March 22 Early 2022"]
[White "Al-Tarboush, Ward"]
[Black "Tsydypov, Zhamsaran"]
[WhiteFideId "7601450"]
[BlackFideId "4108566"]
[WhiteElo "2276"]
[BlackElo "2614"]
[Result "0-1"]
[Round "04"]
[TimeControl "180+1"]
[Date "2022.03.22"]
[WhiteClock "0:02:16"]
[BlackClock "0:02:56"]

1. e4 {[%clk 0:02:54]}  c5 {[%clk 0:02:59]} 2. Nf3 {[%clk 0:02:54]}  Nc6 {[%clk 0:02:59]} 3. d4 {[%clk 0:02:55]}  cxd4 {[%clk 0:03:00]} 4. Nxd4 {[%clk 0:02:56]}  e6 {[%clk 0:02:58]} 5. Nc3 {[%clk 0:02:53]}  d6 {[%clk 0:02:58]} 6. Be3 {[%clk 0:02:49]}  a6 {[%clk 0:02:58]} 7. g4 {[%clk 0:02:48]}  Nge7 {[%clk 0:02:57]} 8. g5 {[%clk 0:02:47]}  b5 {[%clk 0:02:57]} 9. Nxc6 {[%clk 0:02:45]}  Nxc6 {[%clk 0:02:57]} 10. h4 {[%clk 0:02:46]}  Bb7 {[%clk 0:02:57]} 11. Bg2 {[%clk 0:02:47]}  Ne5 {[%clk 0:02:57]} 12. Qd4 {[%clk 0:02:43]}  Nc4 {[%clk 0:02:57]} 13. O-O-O {[%clk 0:02:42]}  Qa5 {[%clk 0:02:57]} 14. Bf1 {[%clk 0:02:25]}  e5 {[%clk 0:02:57]} 15. Qd3 {[%clk 0:02:20]}  Qb4 {[%clk 0:02:57]} 16. Na4 {[%clk 0:02:16]}  Qxa4 {[%clk 0:02:56]} 0-1


[Site "https://www.chess.com"]

[Event "Titled Tuesday Blitz March 22 Early 2022"]
[White "Ardila, Oscar Humberto"]
[Black "Ronka, Erik"]
[WhiteFideId "4404742"]
[BlackFideId "505080"]
[WhiteElo "1966"]
[BlackElo "2264"]
[Result "0-1"]
[Round "04"]
[TimeControl "180+1"]
[Date "2022.03.22"]
[WhiteClock "0:00:03"]
[BlackClock "0:00:32"]

1. d4 {[%clk 0:03:00]}  d5 {[%clk 0:02:59]} 2. c4 {[%clk 0:03:00]}  c6 {[%clk 0:03:00]} 3. Nf3 {[%clk 0:02:58]}  Nf6 {[%clk 0:03:00]} 4. Nc3 {[%clk 0:02:58]}  e6 {[%clk 0:03:00]} 5. b3 {[%clk 0:02:56]}  b6 {[%clk 0:02:58]} 6. Bd2 {[%clk 0:02:50]}  Bb7 {[%clk 0:02:58]} 7. g3 {[%clk 0:02:50]}  Nbd7 {[%clk 0:02:58]} 8. Bg2 {[%clk 0:02:50]}  Bd6 {[%clk 0:02:59]} 9. e3 {[%clk 0:02:49]}  O-O {[%clk 0:02:59]} 10. O-O {[%clk 0:02:49]}  Qe7 {[%clk 0:02:57]} 11. Qc2 {[%clk 0:02:49]}  c5 {[%clk 0:02:56]} 12. Rac1 {[%clk 0:02:25]}  Rac8 {[%clk 0:02:56]} 13. Nb5 {[%clk 0:02:17]}  Bb8 {[%clk 0:02:52]} 14. dxc5 {[%clk 0:02:11]}  Qxc5 {[%clk 0:02:41]} 15. Rfd1 {[%clk 0:01:29]}  a6 {[%clk 0:02:30]} 16. Nbd4 {[%clk 0:01:27]}  dxc4 {[%clk 0:02:26]} 17. Qxc4 {[%clk 0:01:23]}  Qxc4 {[%clk 0:02:26]} 18. bxc4 {[%clk 0:01:18]}  Nc5 {[%clk 0:02:24]} 19. Bb4 {[%clk 0:01:15]}  h6 {[%clk 0:02:22]} 20. a4 {[%clk 0:01:09]}  a5 {[%clk 0:02:04]} 21. Ba3 {[%clk 0:01:07]}  Rfd8 {[%clk 0:02:03]} 22. Bxc5 {[%clk 0:01:03]}  Rxc5 {[%clk 0:01:59]} 23. Nb5 {[%clk 0:00:56]}  Rdc8 {[%clk 0:01:53]} 24. Nd2 {[%clk 0:00:50]}  Bxg2 {[%clk 0:01:50]} 25. Kxg2 {[%clk 0:00:46]}  Kf8 {[%clk 0:01:44]} 26. Kf3 {[%clk 0:00:43]}  Ke7 {[%clk 0:01:44]} 27. Rb1 {[%clk 0:00:38]}  Nd7 {[%clk 0:01:41]} 28. Nd4 {[%clk 0:00:32]}  g6 {[%clk 0:01:31]} 29. Rb5 {[%clk 0:00:21]}  e5 {[%clk 0:01:30]} 30. Rxc5 {[%clk 0:00:14]}  Nxc5 {[%clk 0:01:29]} 31. Nb5 {[%clk 0:00:13]}  Nxa4 {[%clk 0:01:24]} 32. Rb1 {[%clk 0:00:13]}  f5 {[%clk 0:01:22]} 33. e4 {[%clk 0:00:11]}  Nc5 {[%clk 0:01:20]} 34. Nc3 {[%clk 0:00:08]}  Bc7 {[%clk 0:00:55]} 35. Nd5+ {[%clk 0:00:08]}  Kf7 {[%clk 0:00:55]} 36. Nxc7 {[%clk 0:00:04]}  Rxc7 {[%clk 0:00:55]} 37. Rxb6 {[%clk 0:00:04]}  a4 {[%clk 0:00:52]} 38. Rb5 {[%clk 0:00:02]}  Kf6 {[%clk 0:00:41]} 39. Ra5 {[%clk 0:00:02]}  Rc6 {[%clk 0:00:34]} 40. Ke3 {[%clk 0:00:02]}  Ke6 {[%clk 0:00:32]} 41. f3 {[%clk 0:00:03]}  Kd6 {[%clk 0:00:32]} 42. Rb5 {[%clk 0:00:03]}  Ra6 {[%clk 0:00:32]} 0-1


[Site "https://www.chess.com"]

[Event "Titled Tuesday Blitz March 22 Early 2022"]
[White "Avazkhonov, Alikhon"]
[Black "Demin, Vladimir"]
[WhiteFideId "14208504"]
[BlackFideId "4167457"]
[WhiteElo "1739"]
[BlackElo "2535"]
[Result "0-1"]
[Round "04"]
[TimeControl "180+1"]
[Date "2022.03.22"]
[WhiteClock "0:00:11"]
[BlackClock "0:01:07"]

1. f4 {[%clk 0:02:58]}  d5 {[%clk 0:02:55]} 2. Nf3 {[%clk 0:02:55]}  Nf6 {[%clk 0:02:56]} 3. g3 {[%clk 0:02:54]}  e6 {[%clk 0:02:53]} 4. Bg2 {[%clk 0:02:54]}  Be7 {[%clk 0:02:53]} 5. O-O {[%clk 0:02:55]}  O-O {[%clk 0:02:42]} 6. d3 {[%clk 0:02:52]}  b5 {[%clk 0:02:40]} 7. Qe1 {[%clk 0:02:28]}  Bb7 {[%clk 0:02:38]} 8. Ne5 {[%clk 0:02:14]}  Nbd7 {[%clk 0:02:27]} 9. e4 {[%clk 0:02:13]}  dxe4 {[%clk 0:02:23]} 10. Nxd7 {[%clk 0:01:54]}  Qxd7 {[%clk 0:02:21]} 11. Nc3 {[%clk 0:01:53]}  Bb4 {[%clk 0:02:17]} 12. dxe4 {[%clk 0:01:39]}  c5 {[%clk 0:02:02]} 13. a3 {[%clk 0:01:29]}  Ba5 {[%clk 0:01:58]} 14. Qe2 {[%clk 0:01:10]}  c4 {[%clk 0:01:52]} 15. e5 {[%clk 0:01:01]}  Bxg2 {[%clk 0:01:50]} 16. Qxg2 {[%clk 0:00:59]}  Bxc3 {[%clk 0:01:50]} 17. bxc3 {[%clk 0:00:55]}  Nd5 {[%clk 0:01:50]} 18. Qf3 {[%clk 0:00:47]}  Qc7 {[%clk 0:01:38]} 19. a4 {[%clk 0:00:45]}  a6 {[%clk 0:01:37]} 20. Ba3 {[%clk 0:00:40]}  Rfd8 {[%clk 0:01:33]} 21. Kh1 {[%clk 0:00:30]}  bxa4 {[%clk 0:01:29]} 22. Bd6 {[%clk 0:00:25]}  Qc6 {[%clk 0:01:30]} 23. f5 {[%clk 0:00:24]}  exf5 {[%clk 0:01:30]} 24. Qxf5 {[%clk 0:00:18]}  Nxc3+ {[%clk 0:01:13]} 25. Rf3 {[%clk 0:00:16]}  Rd7 {[%clk 0:01:07]} 26. Kg1 {[%clk 0:00:12]}  Ne2+ {[%clk 0:01:06]} 27. Kf2 {[%clk 0:00:11]}  Nd4 {[%clk 0:01:07]} 0-1


[Site "https://www.chess.com"]

[Event "Titled Tuesday Blitz March 22 Early 2022"]
[White "Baches Garcia, Guillermo"]
[Black "Kozak, Adam"]
[WhiteFideId "2209764"]
[BlackFideId "753246"]
[WhiteElo "2459"]
[BlackElo "2459"]
[Result "1-0"]
[Round "04"]
[TimeControl "180+1"]
[Date "2022.03.22"]
[WhiteClock "0:00:07"]
[BlackClock "0:00:02"]

1. e4 {[%clk 0:03:00]}  c6 {[%clk 0:02:57]} 2. Nc3 {[%clk 0:03:00]}  d5 {[%clk 0:02:57]} 3. Nf3 {[%clk 0:03:00]}  Bg4 {[%clk 0:02:55]} 4. h3 {[%clk 0:03:00]}  Bxf3 {[%clk 0:02:56]} 5. Qxf3 {[%clk 0:03:00]}  e6 {[%clk 0:02:56]} 6. g3 {[%clk 0:02:58]}  Nf6 {[%clk 0:02:56]} 7. Bg2 {[%clk 0:02:58]}  Nbd7 {[%clk 0:02:56]} 8. O-O {[%clk 0:02:57]}  Bb4 {[%clk 0:02:56]} 9. exd5 {[%clk 0:02:49]}  cxd5 {[%clk 0:02:55]} 10. d4 {[%clk 0:02:43]}  O-O {[%clk 0:02:54]} 11. a3 {[%clk 0:02:42]}  Be7 {[%clk 0:02:51]} 12. Bf4 {[%clk 0:02:35]}  Rc8 {[%clk 0:02:50]} 13. Qd3 {[%clk 0:02:30]}  Qb6 {[%clk 0:02:46]} 14. Na4 {[%clk 0:02:24]}  Qc6 {[%clk 0:02:46]} 15. Nc3 {[%clk 0:02:19]}  Nb6 {[%clk 0:02:45]} 16. Rfc1 {[%clk 0:01:46]}  Nc4 {[%clk 0:02:43]} 17. Nd1 {[%clk 0:01:46]}  Qb6 {[%clk 0:02:27]} 18. b3 {[%clk 0:01:41]}  Nxa3 {[%clk 0:02:24]} 19. c4 {[%clk 0:01:41]}  Qa6 {[%clk 0:01:39]} 20. Nb2 {[%clk 0:01:22]}  b6 {[%clk 0:01:25]} 21. Bf1 {[%clk 0:01:12]}  Qb7 {[%clk 0:01:19]} 22. Be3 {[%clk 0:00:44]}  b5 {[%clk 0:01:12]} 23. cxb5 {[%clk 0:00:31]}  Rb8 {[%clk 0:01:04]} 24. Bf4 {[%clk 0:00:21]}  Rbc8 {[%clk 0:01:04]} 25. Na4 {[%clk 0:00:20]}  Ne4 {[%clk 0:00:41]} 26. Be3 {[%clk 0:00:13]}  g5 {[%clk 0:00:18]} 27. Nc5 {[%clk 0:00:12]}  Qb8 {[%clk 0:00:06]} 28. Rxa3 {[%clk 0:00:11]}  f5 {[%clk 0:00:06]} 29. b4 {[%clk 0:00:10]}  f4 {[%clk 0:00:07]} 30. Bd2 {[%clk 0:00:10]}  fxg3 {[%clk 0:00:07]} 31. fxg3 {[%clk 0:00:11]}  Nf2 {[%clk 0:00:03]} 32. Qe2 {[%clk 0:00:07]}  Rf6 {[%clk 0:00:02]} 33. Bg2 {[%clk 0:00:07]}  Rcf8 {[%clk 0:00:02]} 34. Rf1 {[%clk 0:00:07]}  Ne4 {[%clk 0:00:02]} 35. Nxe4 {[%clk 0:00:06]}  dxe4 {[%clk 0:00:02]} 36. Qxe4 {[%clk 0:00:06]}  Rxf1+ {[%clk 0:00:01]} 37. Bxf1 {[%clk 0:00:07]}  Qxg3+ {[%clk 0:00:02]} 38. Rxg3 {[%clk 0:00:06]}  Bf6 {[%clk 0:00:02]} 39. Bd3 {[%clk 0:00:06]}  Rf7 {[%clk 0:00:02]} 40. Bxg5 {[%clk 0:00:06]}  Rg7 {[%clk 0:00:01]} 41. Kg2 {[%clk 0:00:04]}  Rxg5 {[%clk 0:00:01]} 42. Qxe6+ {[%clk 0:00:05]}  Kg7 {[%clk 0:00:01]} 43. Rxg5+ {[%clk 0:00:05]}  Bxg5 {[%clk 0:00:02]} 44. Qd7+ {[%clk 0:00:06]}  Kf6 {[%clk 0:00:03]} 45. Qxh7 {[%clk 0:00:06]}  Ke6 {[%clk 0:00:02]} 46. Qf5+ {[%clk 0:00:06]}  Kd6 {[%clk 0:00:01]} 47. Qxg5 {[%clk 0:00:07]}  Kc7 {[%clk 0:00:02]} 48. Qd5 {[%clk 0:00:06]}  Kb6 {[%clk 0:00:02]} 49. Qc6# {[%clk 0:00:07]} 1-0


[Site "https://www.chess.com"]

[Event "Titled Tuesday Blitz March 22 Early 2022"]
[White "Bluebaum, Matthias"]
[Black "Krishnan, Varun"]
[WhiteFideId "24651516"]
[BlackFideId "5054508"]
[WhiteElo "2550"]
[BlackElo "2609"]
[Result "1/2-1/2"]
[Round "04"]
[TimeControl "180+1"]
[Date "2022.03.22"]
[WhiteClock "0:00:25"]
[BlackClock "0:00:07"]

1. b3 {[%clk 0:03:00]}  d5 {[%clk 0:02:59]} 2. Bb2 {[%clk 0:03:01]}  c6 {[%clk 0:02:57]} 3. Nf3 {[%clk 0:03:01]}  Nf6 {[%clk 0:02:56]} 4. d3 {[%clk 0:02:58]}  g6 {[%clk 0:02:55]} 5. g3 {[%clk 0:02:58]}  Bg7 {[%clk 0:02:55]} 6. Bg2 {[%clk 0:02:59]}  O-O {[%clk 0:02:54]} 7. c4 {[%clk 0:02:59]}  Nbd7 {[%clk 0:02:53]} 8. O-O {[%clk 0:02:59]}  Re8 {[%clk 0:02:51]} 9. Nbd2 {[%clk 0:02:58]}  a5 {[%clk 0:02:50]} 10. a3 {[%clk 0:02:58]}  e5 {[%clk 0:02:48]} 11. b4 {[%clk 0:02:58]}  e4 {[%clk 0:02:37]} 12. dxe4 {[%clk 0:02:56]}  dxe4 {[%clk 0:02:38]} 13. Ng5 {[%clk 0:02:53]}  e3 {[%clk 0:02:36]} 14. fxe3 {[%clk 0:02:53]}  Rxe3 {[%clk 0:02:24]} 15. Nge4 {[%clk 0:01:58]}  Nxe4 {[%clk 0:01:59]} 16. Bxg7 {[%clk 0:01:56]}  Nxd2 {[%clk 0:01:07]} 17. Qxd2 {[%clk 0:01:57]}  Qe7 {[%clk 0:01:05]} 18. Bd4 {[%clk 0:00:43]}  Rxe2 {[%clk 0:01:04]} 19. Qf4 {[%clk 0:00:37]}  axb4 {[%clk 0:00:46]} 20. axb4 {[%clk 0:00:37]}  Rxa1 {[%clk 0:00:45]} 21. Rxa1 {[%clk 0:00:28]}  Re1+ {[%clk 0:00:43]} 22. Rxe1 {[%clk 0:00:25]}  Qxe1+ {[%clk 0:00:44]} 23. Bf1 {[%clk 0:00:26]}  Qxb4 {[%clk 0:00:28]} 24. Qc7 {[%clk 0:00:22]}  Qf8 {[%clk 0:00:27]} 25. Bh3 {[%clk 0:00:18]}  Qe8 {[%clk 0:00:25]} 26. Kf2 {[%clk 0:00:17]}  Nb6 {[%clk 0:00:17]} 27. Qf4 {[%clk 0:00:12]}  Bxh3 {[%clk 0:00:09]} 28. Qf6 {[%clk 0:00:13]}  Kf8 {[%clk 0:00:09]} 29. Bc5+ {[%clk 0:00:09]}  Kg8 {[%clk 0:00:09]} 30. Bd4 {[%clk 0:00:10]}  Kf8 {[%clk 0:00:09]} 31. Qg7+ {[%clk 0:00:09]}  Ke7 {[%clk 0:00:09]} 32. Bxb6 {[%clk 0:00:10]}  Qd7 {[%clk 0:00:08]} 33. Bc5+ {[%clk 0:00:10]}  Ke6 {[%clk 0:00:07]} 34. Qc3 {[%clk 0:00:10]}  f6 {[%clk 0:00:07]} 35. Bd4 {[%clk 0:00:04]}  Kf7 {[%clk 0:00:07]} 36. Qe3 {[%clk 0:00:03]}  Qf5+ {[%clk 0:00:07]} 37. Ke1 {[%clk 0:00:04]}  Qe6 {[%clk 0:00:07]} 38. Kf2 {[%clk 0:00:04]}  Qxe3+ {[%clk 0:00:07]} 39. Kxe3 {[%clk 0:00:05]}  Be6 {[%clk 0:00:07]} 40. c5 {[%clk 0:00:05]}  Bd5 {[%clk 0:00:07]} 41. Kf4 {[%clk 0:00:06]}  Ke6 {[%clk 0:00:07]} 42. h4 {[%clk 0:00:06]}  h5 {[%clk 0:00:07]} 43. Bc3 {[%clk 0:00:06]}  Bc4 {[%clk 0:00:07]} 44. Bb2 {[%clk 0:00:07]}  Be2 {[%clk 0:00:08]} 45. Bc3 {[%clk 0:00:07]}  Bg4 {[%clk 0:00:08]} 46. Bb2 {[%clk 0:00:07]}  Kd5 {[%clk 0:00:07]} 47. Ba3 {[%clk 0:00:08]}  Kc4 {[%clk 0:00:06]} 48. Ke4 {[%clk 0:00:08]}  Bf5+ {[%clk 0:00:06]} 49. Kf4 {[%clk 0:00:09]}  Kb3 {[%clk 0:00:06]} 50. Bc1 {[%clk 0:00:09]}  Kb4 {[%clk 0:00:07]} 51. Be3 {[%clk 0:00:09]}  Kc4 {[%clk 0:00:07]} 52. Bg1 {[%clk 0:00:09]}  Kd3 {[%clk 0:00:06]} 53. Bf2 {[%clk 0:00:10]}  Ke2 {[%clk 0:00:06]} 54. Bd4 {[%clk 0:00:11]}  Kd3 {[%clk 0:00:06]} 55. Bxf6 {[%clk 0:00:11]}  Kc4 {[%clk 0:00:06]} 56. Be7 {[%clk 0:00:12]}  Kd5 {[%clk 0:00:06]} 57. Bf8 {[%clk 0:00:12]}  Ke6 {[%clk 0:00:06]} 58. Ke3 {[%clk 0:00:12]}  Kd5 {[%clk 0:00:06]} 59. Kf4 {[%clk 0:00:12]}  Ke6 {[%clk 0:00:06]} 60. Kg5 {[%clk 0:00:11]}  Kd5 {[%clk 0:00:06]} 61. Kf6 {[%clk 0:00:12]}  Kc4 {[%clk 0:00:04]} 62. Ke5 {[%clk 0:00:12]}  Kb5 {[%clk 0:00:04]} 63. Kd6 {[%clk 0:00:12]}  Ka6 {[%clk 0:00:04]} 64. Kc7 {[%clk 0:00:12]}  Bg4 {[%clk 0:00:04]} 65. Bd6 {[%clk 0:00:13]}  Bf5 {[%clk 0:00:05]} 66. Bf4 {[%clk 0:00:12]}  Bg4 {[%clk 0:00:05]} 67. Be3 {[%clk 0:00:12]}  Bf5 {[%clk 0:00:05]} 68. Kd6 {[%clk 0:00:13]}  Bg4 {[%clk 0:00:05]} 69. Bf2 {[%clk 0:00:13]}  Bf5 {[%clk 0:00:06]} 70. Ke5 {[%clk 0:00:14]}  Bc2 {[%clk 0:00:06]} 71. Kf6 {[%clk 0:00:14]}  Bf5 {[%clk 0:00:06]} 72. Ke5 {[%clk 0:00:15]}  Bb1 {[%clk 0:00:06]} 73. Kd4 {[%clk 0:00:15]}  Bf5 {[%clk 0:00:07]} 74. Kc4 {[%clk 0:00:16]}  Bg4 {[%clk 0:00:07]} 75. Kb4 {[%clk 0:00:17]}  Bf5 {[%clk 0:00:08]} 76. Be3 {[%clk 0:00:17]}  Bg4 {[%clk 0:00:08]} 77. Kc3 {[%clk 0:00:18]}  Bf5 {[%clk 0:00:08]} 78. Kd4 {[%clk 0:00:18]}  Bg4 {[%clk 0:00:07]} 79. Ke5 {[%clk 0:00:19]}  Bf5 {[%clk 0:00:08]} 80. Kf6 {[%clk 0:00:20]}  Bc2 {[%clk 0:00:08]} 81. Kf7 {[%clk 0:00:20]}  Bf5 {[%clk 0:00:08]} 82. Kg7 {[%clk 0:00:20]}  Bc2 {[%clk 0:00:08]} 83. Kf6 {[%clk 0:00:21]}  Bf5 {[%clk 0:00:08]} 84. g4 {[%clk 0:00:21]}  Bxg4 {[%clk 0:00:06]} 85. Kxg6 {[%clk 0:00:22]}  Be2 {[%clk 0:00:06]} 86. Kg5 {[%clk 0:00:22]}  Bg4 {[%clk 0:00:06]} 87. Bf2 {[%clk 0:00:22]}  Bd1 {[%clk 0:00:06]} 88. Kf4 {[%clk 0:00:23]}  Bg4 {[%clk 0:00:07]} 89. Kg5 {[%clk 0:00:24]}  Bd1 {[%clk 0:00:07]} 90. Kf4 {[%clk 0:00:24]}  Bg4 {[%clk 0:00:07]} 91. Kg5 {[%clk 0:00:25]} 1/2-1/2


[Site "https://www.chess.com"]